[Event "Early-Titled-Tuesday-Blitz-September-05-2023"]
[Site "Chess.com"]
[Date "2023.09.05"]
[Round "11"]
[White "KVAIDAN"]
[Black "ExchangeAB"]
[Result "0-1"]
[WhiteElo "2239"]
[BlackElo "2431"]
[TimeControl "180+1"]
[EndTime "10:07:04 PDT"]
[Termination "ExchangeAB won by checkmate"]

1. f4 {[%clk 0:02:22.2]} 1... c6 {[%clk 0:03:00.9]} 2. Nf3 {[%clk 0:02:20.5]}
2... h5 {[%clk 0:03:00.4]} 3. d3 {[%clk 0:02:20.4]} 3... h4 {[%clk 0:03:00.3]}
4. e4 {[%clk 0:02:20.8]} 4... d5 {[%clk 0:03:00.7]} 5. Nc3 {[%clk 0:02:16]} 5...
h3 {[%clk 0:02:58.6]} 6. gxh3 {[%clk 0:02:14.4]} 6... Nf6 {[%clk 0:02:58.1]} 7.
Be3 {[%clk 0:02:10.7]} 7... Bxh3 {[%clk 0:02:35.8]} 8. Bxh3 {[%clk 0:01:49.6]}
8... Rxh3 {[%clk 0:02:36.7]} 9. Qe2 {[%clk 0:01:49.3]} 9... Qa5 {[%clk
0:02:29.6]} 10. O-O-O {[%clk 0:01:48.5]} 10... e6 {[%clk 0:02:17.8]} 11. Kb1
{[%clk 0:01:45.7]} 11... Nbd7 {[%clk 0:02:15]} 12. Ng5 {[%clk 0:01:42.8]} 12...
Rh8 {[%clk 0:02:04.9]} 13. f5 {[%clk 0:01:42.9]} 13... e5 {[%clk 0:02:01.3]} 14.
exd5 {[%clk 0:01:40.9]} 14... cxd5 {[%clk 0:02:02.2]} 15. d4 {[%clk 0:01:34.8]}
15... e4 {[%clk 0:01:57.7]} 16. Bf4 {[%clk 0:01:33.2]} 16... Bb4 {[%clk
0:01:28.6]} 17. Bd2 {[%clk 0:01:25.6]} 17... Bxc3 {[%clk 0:01:21.2]} 18. Bxc3
{[%clk 0:01:25.5]} 18... Qb6 {[%clk 0:01:20.5]} 19. Be1 {[%clk 0:01:15.6]} 19...
Rc8 {[%clk 0:01:15.7]} 20. Bg3 {[%clk 0:01:12.8]} 20... Kf8 {[%clk 0:01:10.6]}
21. h4 {[%clk 0:01:08.6]} 21... a5 {[%clk 0:01:05.6]} 22. Be5 {[%clk 0:01:05.7]}
22... a4 {[%clk 0:01:05.1]} 23. a3 {[%clk 0:01:05.7]} 23... Qc6 {[%clk
0:00:58.6]} 24. c3 {[%clk 0:01:02.8]} 24... Qc4 {[%clk 0:00:58.3]} 25. Qg2
{[%clk 0:00:53.8]} 25... Rc6 {[%clk 0:00:53]} 26. Rdg1 {[%clk 0:00:52.6]} 26...
Nh5 {[%clk 0:00:37]} 27. Ne6+ {[%clk 0:00:43.3]} 27... Ke7 {[%clk 0:00:29.6]}
28. Nxg7 {[%clk 0:00:39.9]} 28... Qd3+ {[%clk 0:00:22.3]} 29. Ka1 {[%clk
0:00:39]} 29... Rg8 {[%clk 0:00:21.2]} 30. Qg5+ {[%clk 0:00:34.9]} 30... Nhf6
{[%clk 0:00:17.2]} 31. Bxf6+ {[%clk 0:00:32.8]} 31... Nxf6 {[%clk 0:00:17.8]}
32. Qg3 {[%clk 0:00:28.4]} 32... Qxg3 {[%clk 0:00:15.4]} 33. Rxg3 {[%clk
0:00:28.3]} 33... Rcc8 {[%clk 0:00:13.7]} 34. h5 {[%clk 0:00:28.6]} 34... Rh8
{[%clk 0:00:12]} 35. h6 {[%clk 0:00:27.8]} 35... Rh7 {[%clk 0:00:12.3]} 36. Ka2
{[%clk 0:00:23.3]} 36... Rch8 {[%clk 0:00:12.1]} 37. Rgh3 {[%clk 0:00:23.5]}
37... Ng4 {[%clk 0:00:09.6]} 38. c4 {[%clk 0:00:23.7]} 38... dxc4 {[%clk
0:00:09.2]} 39. Rh4 {[%clk 0:00:23.3]} 39... Nf6 {[%clk 0:00:07.1]} 40. Re1
{[%clk 0:00:21.4]} 40... Kd6 {[%clk 0:00:07.1]} 41. Reh1 {[%clk 0:00:19.6]}
41... Kd5 {[%clk 0:00:07.6]} 42. Nh5 {[%clk 0:00:19.5]} 42... Nxh5 {[%clk
0:00:05.2]} 43. Rxh5 {[%clk 0:00:19.9]} 43... f6 {[%clk 0:00:05.7]} 44. Kb1
{[%clk 0:00:17.3]} 44... Kxd4 {[%clk 0:00:06.1]} 45. Kc2 {[%clk 0:00:17.6]}
45... Ke5 {[%clk 0:00:06.8]} 46. Kc3 {[%clk 0:00:17.4]} 46... Rd8 {[%clk
0:00:07.1]} 47. Kxc4 {[%clk 0:00:17.5]} 47... Rd2 {[%clk 0:00:07.2]} 48. R1h2
{[%clk 0:00:16.9]} 48... Rxh2 {[%clk 0:00:06.9]} 49. Rxh2 {[%clk 0:00:17.5]}
49... Kxf5 {[%clk 0:00:07.8]} 50. Kd4 {[%clk 0:00:17.9]} 50... Kg5 {[%clk
0:00:06.8]} 51. Rg2+ {[%clk 0:00:17.7]} 51... Kxh6 {[%clk 0:00:06.8]} 52. Kxe4
{[%clk 0:00:18.2]} 52... Rg7 {[%clk 0:00:05.6]} 53. Rf2 {[%clk 0:00:17.9]} 53...
Kg6 {[%clk 0:00:05.6]} 54. Kd5 {[%clk 0:00:18.1]} 54... Rc7 {[%clk 0:00:05.8]}
55. Ke6 {[%clk 0:00:17]} 55... Rc6+ {[%clk 0:00:06.3]} 56. Kd7 {[%clk
0:00:17.1]} 56... f5 {[%clk 0:00:06.6]} 57. Rf4 {[%clk 0:00:17.3]} 57... Kg5
{[%clk 0:00:07]} 58. Rxa4 {[%clk 0:00:17.3]} 58... f4 {[%clk 0:00:07.4]} 59. Rb4
{[%clk 0:00:17.9]} 59... Rf6 {[%clk 0:00:06.5]} 60. Rxb7 {[%clk 0:00:17.3]}
60... f3 {[%clk 0:00:07.1]} 61. Rb5+ {[%clk 0:00:15.6]} 61... Kf4 {[%clk
0:00:07]} 62. Ke7 {[%clk 0:00:15.8]} 62... Rh6 {[%clk 0:00:04.5]} 63. Rb8 {[%clk
0:00:14.9]} 63... f2 {[%clk 0:00:04.4]} 64. Rf8+ {[%clk 0:00:14.7]} 64... Ke3
{[%clk 0:00:05]} 65. b4 {[%clk 0:00:15.1]} 65... Rh4 {[%clk 0:00:05]} 66. Kd6
{[%clk 0:00:14.2]} 66... Rf4 {[%clk 0:00:04.7]} 67. Re8+ {[%clk 0:00:14.8]}
67... Kd3 {[%clk 0:00:05]} 68. b5 {[%clk 0:00:14.1]} 68... f1=Q {[%clk
0:00:04.9]} 69. b6 {[%clk 0:00:14.6]} 69... Qd1 {[%clk 0:00:05.1]} 70. Kc7
{[%clk 0:00:14.9]} 70... Kc4 {[%clk 0:00:05.4]} 71. Rc8 {[%clk 0:00:14]} 71...
Rf7+ {[%clk 0:00:05.9]} 72. Kb8+ {[%clk 0:00:14.1]} 72... Kb5 {[%clk 0:00:06.3]}
73. b7 {[%clk 0:00:14.7]} 73... Qd7 {[%clk 0:00:06.3]} 74. Rc5+ {[%clk
0:00:10.6]} 74... Kxc5 {[%clk 0:00:06.6]} 75. Ka8 {[%clk 0:00:09.3]} 75... Qxb7#
{[%clk 0:00:07]} 0-1

[Event "Early-Titled-Tuesday-Blitz-September-05-2023"]
[Site "Chess.com"]
[Date "2023.09.05"]
[Round "11"]
[White "Abund"]
[Black "nrvisakh"]
[Result "0-1"]
[WhiteElo "2738"]
[BlackElo "2879"]
[TimeControl "180+1"]
[EndTime "10:07:07 PDT"]
[Termination "nrvisakh won by resignation"]

1. e4 {[%clk 0:03:00.9]} 1... c5 {[%clk 0:02:54.1]} 2. Nf3 {[%clk 0:03:00.8]}
2... g6 {[%clk 0:02:54.4]} 3. c3 {[%clk 0:03:00.8]} 3... d5 {[%clk 0:02:53.8]}
4. e5 {[%clk 0:02:48.9]} 4... Bg4 {[%clk 0:02:53.1]} 5. d4 {[%clk 0:02:39]} 5...
Nc6 {[%clk 0:02:52.2]} 6. Bb5 {[%clk 0:02:38]} 6... Qb6 {[%clk 0:02:46.6]} 7.
Qa4 {[%clk 0:02:19.8]} 7... Bxf3 {[%clk 0:02:39.8]} 8. dxc5 {[%clk 0:02:16]}
8... Qxc5 {[%clk 0:02:34.8]} 9. Be3 {[%clk 0:02:04.8]} 9... d4 {[%clk
0:02:33.7]} 10. cxd4 {[%clk 0:02:04.9]} 10... Qd5 {[%clk 0:02:20.1]} 11. Nc3
{[%clk 0:02:05.1]} 11... Qd7 {[%clk 0:02:19]} 12. gxf3 {[%clk 0:02:04.2]} 12...
e6 {[%clk 0:02:19.2]} 13. O-O-O {[%clk 0:01:58.1]} 13... Nge7 {[%clk 0:02:19.3]}
14. Kb1 {[%clk 0:01:36.3]} 14... a6 {[%clk 0:02:10.6]} 15. Bg5 {[%clk
0:01:19.2]} 15... Rc8 {[%clk 0:02:02]} 16. Bf6 {[%clk 0:01:08.8]} 16... Rg8
{[%clk 0:01:50.5]} 17. Be2 {[%clk 0:01:04.2]} 17... Nd5 {[%clk 0:01:29]} 18. Ne4
{[%clk 0:01:03.5]} 18... Nxe5 {[%clk 0:01:16.4]} 19. Qb3 {[%clk 0:00:50.2]}
19... Nc6 {[%clk 0:01:15.4]} 20. Rc1 {[%clk 0:00:39.9]} 20... Be7 {[%clk
0:01:11.9]} 21. Be5 {[%clk 0:00:27.6]} 21... f6 {[%clk 0:01:08.7]} 22. Bg3
{[%clk 0:00:27.1]} 22... Kf7 {[%clk 0:00:46.2]} 23. Rhd1 {[%clk 0:00:26]} 23...
Rgd8 {[%clk 0:00:46.2]} 24. Nc5 {[%clk 0:00:25.9]} 24... Nxd4 {[%clk 0:00:37.6]}
25. Nxd7 {[%clk 0:00:21.6]} 25... Rxc1+ {[%clk 0:00:37.4]} 26. Rxc1 {[%clk
0:00:16.6]} 26... Nxb3 {[%clk 0:00:37.7]} 27. Ne5+ {[%clk 0:00:13.1]} 27... fxe5
{[%clk 0:00:37.1]} 28. axb3 {[%clk 0:00:13.8]} 28... Bg5 {[%clk 0:00:34.5]} 29.
Rc4 {[%clk 0:00:09.3]} 29... Bf4 {[%clk 0:00:34.5]} 30. Bd3 {[%clk 0:00:08]}
30... Rd7 {[%clk 0:00:30.7]} 31. Be4 {[%clk 0:00:08.2]} 31... Nf6 {[%clk
0:00:30.3]} 32. Kc2 {[%clk 0:00:04.3]} 32... Rd2+ {[%clk 0:00:28.7]} 33. Kc3
{[%clk 0:00:03.5]} 33... Rd7 {[%clk 0:00:20.5]} 34. Rc5 {[%clk 0:00:03]} 34...
Nd5+ {[%clk 0:00:20.3]} 35. Kc2 {[%clk 0:00:01.9]} 35... Nb4+ {[%clk 0:00:19.9]}
36. Kc3 {[%clk 0:00:02.6]} 36... Na2+ {[%clk 0:00:20.1]} 37. Kc2 {[%clk
0:00:03.1]} 37... Rd2+ {[%clk 0:00:19.4]} 38. Kb1 {[%clk 0:00:03.7]} 38... Nb4
{[%clk 0:00:19.8]} 39. Bxf4 {[%clk 0:00:04.3]} 39... exf4 {[%clk 0:00:19.1]} 40.
Bxb7 {[%clk 0:00:04.6]} 40... Rd1+ {[%clk 0:00:18.6]} 41. Rc1 {[%clk 0:00:04.7]}
41... Rd2 {[%clk 0:00:19]} 42. Be4 {[%clk 0:00:04]} 42... Rxf2 {[%clk
0:00:18.5]} 43. Rc4 {[%clk 0:00:04.5]} 43... a5 {[%clk 0:00:18.2]} 44. h4 {[%clk
0:00:03.7]} 44... Rf1+ {[%clk 0:00:17.6]} 45. Rc1 {[%clk 0:00:04.1]} 45... Rxc1+
{[%clk 0:00:18]} 46. Kxc1 {[%clk 0:00:05]} 46... Ke7 {[%clk 0:00:16.3]} 47. Kd2
{[%clk 0:00:05.5]} 47... Kd6 {[%clk 0:00:16.8]} 48. Kc3 {[%clk 0:00:06]} 48...
Kc5 {[%clk 0:00:17.3]} 49. Kd2 {[%clk 0:00:04.4]} 49... Nc6 {[%clk 0:00:15.8]}
50. Kc3 {[%clk 0:00:03.7]} 50... Nd4 {[%clk 0:00:15.7]} 51. h5 {[%clk
0:00:01.8]} 51... gxh5 {[%clk 0:00:15.7]} 52. Bxh7 {[%clk 0:00:02.2]} 52... h4
{[%clk 0:00:15.4]} 53. Bd3 {[%clk 0:00:02.9]} 53... h3 {[%clk 0:00:15.2]} 54.
Bf1 {[%clk 0:00:03.1]} 54... h2 {[%clk 0:00:14.5]} 55. Bg2 {[%clk 0:00:03.7]}
55... Ne2+ {[%clk 0:00:15]} 56. Kd3 {[%clk 0:00:03.7]} 56... Ng3 {[%clk
0:00:15.9]} 57. Kc3 {[%clk 0:00:03.3]} 57... e5 {[%clk 0:00:16.3]} 58. Kd3
{[%clk 0:00:03.3]} 58... Kb4 {[%clk 0:00:17]} 59. Kc2 {[%clk 0:00:03.5]} 59...
h1=Q {[%clk 0:00:16.5]} 60. Bxh1 {[%clk 0:00:04.1]} 60... Nxh1 {[%clk
0:00:17.4]} 61. Kd3 {[%clk 0:00:04.9]} 61... Ng3 {[%clk 0:00:17.6]} 62. Kc2
{[%clk 0:00:05.1]} 62... e4 {[%clk 0:00:18.2]} 63. Kb1 {[%clk 0:00:04]} 63...
exf3 {[%clk 0:00:18.2]} 64. Ka1 {[%clk 0:00:04]} 64... f2 {[%clk 0:00:18.5]} 65.
Ka2 {[%clk 0:00:04.7]} 65... a4 {[%clk 0:00:19]} 66. bxa4 {[%clk 0:00:02.5]}
66... f1=Q {[%clk 0:00:19.4]} 67. a5 {[%clk 0:00:02.5]} 67... f3 {[%clk
0:00:19]} 68. a6 {[%clk 0:00:02.5]} 68... f2 {[%clk 0:00:19.5]} 69. a7 {[%clk
0:00:02.5]} 69... Qc4+ {[%clk 0:00:19.6]} 70. b3 {[%clk 0:00:02.3]} 70... Qc2+
{[%clk 0:00:19]} 0-1

[Event "Early-Titled-Tuesday-Blitz-September-05-2023"]
[Site "Chess.com"]
[Date "2023.09.05"]
[Round "11"]
[White "jcmesafischer"]
[Black "HeinichessPY"]
[Result "1-0"]
[WhiteElo "2444"]
[BlackElo "2216"]
[TimeControl "180+1"]
[EndTime "10:07:10 PDT"]
[Termination "jcmesafischer won by checkmate"]

1. Nf3 {[%clk 0:02:39.6]} 1... c5 {[%clk 0:03:00.9]} 2. g3 {[%clk 0:02:38]} 2...
d5 {[%clk 0:02:56]} 3. Bg2 {[%clk 0:02:37.9]} 3... Nf6 {[%clk 0:02:56.6]} 4. O-O
{[%clk 0:02:37.6]} 4... g6 {[%clk 0:02:54.6]} 5. d3 {[%clk 0:02:37.9]} 5... Bg7
{[%clk 0:02:55.2]} 6. Nc3 {[%clk 0:02:35.4]} 6... O-O {[%clk 0:02:55.3]} 7. a4
{[%clk 0:02:35.5]} 7... Nc6 {[%clk 0:02:55]} 8. Nd2 {[%clk 0:02:34.3]} 8... Be6
{[%clk 0:02:50.1]} 9. Nb3 {[%clk 0:02:30.2]} 9... d4 {[%clk 0:02:41.8]} 10. Nb5
{[%clk 0:02:18.4]} 10... Bd5 {[%clk 0:02:25.1]} 11. c4 {[%clk 0:02:04.2]} 11...
Bxg2 {[%clk 0:02:19.9]} 12. Kxg2 {[%clk 0:02:04.2]} 12... a6 {[%clk 0:02:19.6]}
13. Na3 {[%clk 0:02:03.4]} 13... Qd6 {[%clk 0:02:14.2]} 14. Bf4 {[%clk
0:01:58.4]} 14... e5 {[%clk 0:02:14.4]} 15. Bg5 {[%clk 0:01:59]} 15... h6 {[%clk
0:02:14.4]} 16. Bxf6 {[%clk 0:01:58.7]} 16... Bxf6 {[%clk 0:02:14.6]} 17. Nd2
{[%clk 0:01:54.7]} 17... Bg7 {[%clk 0:02:13.2]} 18. Nc2 {[%clk 0:01:52.3]} 18...
f5 {[%clk 0:02:12.5]} 19. Rb1 {[%clk 0:01:47.8]} 19... Rae8 {[%clk 0:02:08.7]}
20. f3 {[%clk 0:01:20.6]} 20... Bf6 {[%clk 0:02:02.1]} 21. Qc1 {[%clk
0:01:12.6]} 21... Bg5 {[%clk 0:02:02.2]} 22. h4 {[%clk 0:01:11.1]} 22... Bf6
{[%clk 0:01:44.3]} 23. b4 {[%clk 0:01:06.6]} 23... cxb4 {[%clk 0:01:32.7]} 24.
c5 {[%clk 0:01:04.7]} 24... Qd5 {[%clk 0:01:23.4]} 25. Nxb4 {[%clk 0:01:01.5]}
25... Nxb4 {[%clk 0:01:22.9]} 26. Rxb4 {[%clk 0:01:01.4]} 26... e4 {[%clk
0:01:23.8]} 27. Qc4 {[%clk 0:00:58.7]} 27... Qxc4 {[%clk 0:01:14.8]} 28. Nxc4
{[%clk 0:00:46.4]} 28... exd3 {[%clk 0:01:09.4]} 29. exd3 {[%clk 0:00:45.9]}
29... Re2+ {[%clk 0:00:57.6]} 30. Rf2 {[%clk 0:00:44.9]} 30... Rxf2+ {[%clk
0:00:54.6]} 31. Kxf2 {[%clk 0:00:44.6]} 31... f4 {[%clk 0:00:55]} 32. Rxb7
{[%clk 0:00:42.1]} 32... fxg3+ {[%clk 0:00:55.5]} 33. Kxg3 {[%clk 0:00:41.7]}
33... Rc8 {[%clk 0:00:55.9]} 34. Rb6 {[%clk 0:00:37.6]} 34... Be7 {[%clk
0:00:48.9]} 35. c6 {[%clk 0:00:31.9]} 35... a5 {[%clk 0:00:41]} 36. Nxa5 {[%clk
0:00:29.2]} 36... Bd8 {[%clk 0:00:41.5]} 37. Ra6 {[%clk 0:00:22.8]} 37... Bxa5
{[%clk 0:00:38.7]} 38. Rxa5 {[%clk 0:00:23.7]} 38... Rxc6 {[%clk 0:00:39.2]} 39.
Kf4 {[%clk 0:00:17.3]} 39... Kf7 {[%clk 0:00:35.2]} 40. Ke4 {[%clk 0:00:17.5]}
40... Ke6 {[%clk 0:00:31.3]} 41. Kxd4 {[%clk 0:00:15.2]} 41... Rc1 {[%clk
0:00:31.8]} 42. Ke4 {[%clk 0:00:12.9]} 42... Re1+ {[%clk 0:00:31.1]} 43. Kf4
{[%clk 0:00:13.1]} 43... Rd1 {[%clk 0:00:30.2]} 44. Ra6+ {[%clk 0:00:13.3]}
44... Kf7 {[%clk 0:00:30.1]} 45. Ke4 {[%clk 0:00:12.4]} 45... Re1+ {[%clk
0:00:30.5]} 46. Kd5 {[%clk 0:00:12.3]} 46... Rf1 {[%clk 0:00:29.7]} 47. d4
{[%clk 0:00:12.3]} 47... Rxf3 {[%clk 0:00:30.2]} 48. a5 {[%clk 0:00:12.6]} 48...
g5 {[%clk 0:00:28]} 49. Rxh6 {[%clk 0:00:09.4]} 49... gxh4 {[%clk 0:00:23.3]}
50. Rxh4 {[%clk 0:00:10.3]} 50... Rf5+ {[%clk 0:00:23.9]} 51. Kd6 {[%clk
0:00:06.9]} 51... Rxa5 {[%clk 0:00:24.3]} 52. d5 {[%clk 0:00:05.8]} 52... Kf6
{[%clk 0:00:20.6]} 53. Rf4+ {[%clk 0:00:05]} 53... Kg7 {[%clk 0:00:20.3]} 54.
Rf1 {[%clk 0:00:05.6]} 54... Ra6+ {[%clk 0:00:19.8]} 55. Ke7 {[%clk 0:00:05.8]}
55... Ra7+ {[%clk 0:00:19.8]} 56. Ke6 {[%clk 0:00:06.3]} 56... Ra6+ {[%clk
0:00:20.4]} 57. d6 {[%clk 0:00:06.7]} 57... Rb6 {[%clk 0:00:19.5]} 58. Ke7
{[%clk 0:00:06.7]} 58... Rb2 {[%clk 0:00:18]} 59. Rg1+ {[%clk 0:00:06.7]} 59...
Kh6 {[%clk 0:00:17.1]} 60. d7 {[%clk 0:00:06.2]} 60... Re2+ {[%clk 0:00:17.5]}
61. Kd8 {[%clk 0:00:06.5]} 61... Rd2 {[%clk 0:00:17.3]} 62. Rc1 {[%clk
0:00:06.6]} 62... Kg7 {[%clk 0:00:16.5]} 63. Kc7 {[%clk 0:00:07.1]} 63... Kf7
{[%clk 0:00:03.4]} 64. d8=Q {[%clk 0:00:05.1]} 64... Rxd8 {[%clk 0:00:04.3]} 65.
Kxd8 {[%clk 0:00:05.6]} 65... Ke6 {[%clk 0:00:05.2]} 66. Re1+ {[%clk 0:00:05.3]}
66... Kf5 {[%clk 0:00:05.5]} 67. Kd7 {[%clk 0:00:05.6]} 67... Kf4 {[%clk
0:00:06.4]} 68. Kd6 {[%clk 0:00:05.9]} 68... Kf3 {[%clk 0:00:07.3]} 69. Kd5
{[%clk 0:00:05]} 69... Kf2 {[%clk 0:00:08.2]} 70. Re4 {[%clk 0:00:04.9]} 70...
Kf3 {[%clk 0:00:09.1]} 71. Rb4 {[%clk 0:00:05.1]} 71... Kf2 {[%clk 0:00:10]} 72.
Ke4 {[%clk 0:00:05.2]} 72... Kg3 {[%clk 0:00:09.5]} 73. Rb3+ {[%clk 0:00:05.1]}
73... Kf2 {[%clk 0:00:10.4]} 74. Ra3 {[%clk 0:00:03.9]} 74... Kg2 {[%clk
0:00:10.1]} 75. Ra2+ {[%clk 0:00:02.9]} 75... Kh3 {[%clk 0:00:10.3]} 76. Rb2
{[%clk 0:00:03.4]} 76... Kg3 {[%clk 0:00:11.2]} 77. Rc2 {[%clk 0:00:03.3]} 77...
Kh3 {[%clk 0:00:11.1]} 78. Kf4 {[%clk 0:00:03.9]} 78... Kh4 {[%clk 0:00:10.7]}
79. Rh2# {[%clk 0:00:04.8]} 1-0

[Event "Early-Titled-Tuesday-Blitz-September-05-2023"]
[Site "Chess.com"]
[Date "2023.09.05"]
[Round "11"]
[White "m_ezat"]
[Black "PetrolulSah"]
[Result "1-0"]
[WhiteElo "2682"]
[BlackElo "2164"]
[TimeControl "180+1"]
[EndTime "10:07:12 PDT"]
[Termination "m_ezat won by resignation"]

1. d4 {[%clk 0:01:22.5]} 1... d5 {[%clk 0:02:46.2]} 2. Nf3 {[%clk 0:01:20.8]}
2... Nf6 {[%clk 0:02:37.9]} 3. c4 {[%clk 0:01:18.4]} 3... c6 {[%clk 0:02:36.5]}
4. Nc3 {[%clk 0:01:17.7]} 4... dxc4 {[%clk 0:02:36.7]} 5. e4 {[%clk 0:01:17.4]}
5... b5 {[%clk 0:02:35.2]} 6. Be2 {[%clk 0:01:16.5]} 6... e6 {[%clk 0:02:26.8]}
7. a4 {[%clk 0:01:09.6]} 7... a6 {[%clk 0:02:18.6]} 8. axb5 {[%clk 0:01:07.5]}
8... cxb5 {[%clk 0:02:16.9]} 9. Nxb5 {[%clk 0:01:05.2]} 9... Nxe4 {[%clk
0:02:13.8]} 10. O-O {[%clk 0:01:02.5]} 10... Bb7 {[%clk 0:02:10.4]} 11. Nc3
{[%clk 0:01:02.5]} 11... Nd6 {[%clk 0:01:58.8]} 12. Ne5 {[%clk 0:01:02]} 12...
Be7 {[%clk 0:01:58.3]} 13. Bf3 {[%clk 0:00:58.5]} 13... O-O {[%clk 0:01:51.5]}
14. Bxb7 {[%clk 0:00:55.8]} 14... Nxb7 {[%clk 0:01:52.4]} 15. Qa4 {[%clk
0:00:52.4]} 15... Qxd4 {[%clk 0:01:43.6]} 16. Nc6 {[%clk 0:00:51]} 16... Nxc6
{[%clk 0:01:24]} 17. Qxc6 {[%clk 0:00:51.9]} 17... Nc5 {[%clk 0:01:18.4]} 18.
Be3 {[%clk 0:00:45.2]} 18... Qd7 {[%clk 0:01:13.4]} 19. Qf3 {[%clk 0:00:44.9]}
19... Nd3 {[%clk 0:01:10]} 20. Rfd1 {[%clk 0:00:44.3]} 20... h6 {[%clk
0:01:06.6]} 21. Qg4 {[%clk 0:00:44.2]} 21... Kh8 {[%clk 0:01:02.6]} 22. Qxc4
{[%clk 0:00:43.5]} 22... Rfd8 {[%clk 0:01:01.3]} 23. Rxa6 {[%clk 0:00:39.9]}
23... Rab8 {[%clk 0:00:56.4]} 24. h3 {[%clk 0:00:35.4]} 24... Rxb2 {[%clk
0:00:51.1]} 25. Ne4 {[%clk 0:00:35.3]} 25... Qb7 {[%clk 0:00:41]} 26. Ra7 {[%clk
0:00:33.7]} 26... Qb4 {[%clk 0:00:25.4]} 27. Qxb4 {[%clk 0:00:21.8]} 27... Rxb4
{[%clk 0:00:23.6]} 28. Rxe7 {[%clk 0:00:20.6]} 28... Rxe4 {[%clk 0:00:22.8]} 29.
Rxf7 {[%clk 0:00:21.2]} 29... Kg8 {[%clk 0:00:21.7]} 30. Ra7 {[%clk 0:00:19.1]}
30... Rd5 {[%clk 0:00:21.6]} 31. Ra8+ {[%clk 0:00:18.3]} 31... Kf7 {[%clk
0:00:21]} 32. Ra7+ {[%clk 0:00:18.2]} 32... Kg6 {[%clk 0:00:20.5]} 33. h4 {[%clk
0:00:18.3]} 33... h5 {[%clk 0:00:20.2]} 34. Ra6 {[%clk 0:00:15.7]} 34... Kf7
{[%clk 0:00:17.6]} 35. Rb1 {[%clk 0:00:16.2]} 35... Rd7 {[%clk 0:00:16.7]} 36.
Rb8 {[%clk 0:00:14.1]} 36... Rxh4 {[%clk 0:00:15.7]} 37. Raa8 {[%clk 0:00:14]}
37... Re4 {[%clk 0:00:14.4]} 38. Rh8 {[%clk 0:00:13.4]} 38... h4 {[%clk
0:00:13.3]} 39. Rh7 {[%clk 0:00:13.3]} 39... Kg6 {[%clk 0:00:12.9]} 40. Rah8
{[%clk 0:00:12.4]} 40... h3 {[%clk 0:00:11.3]} 41. Rxh3 {[%clk 0:00:11.4]} 41...
Ne5 {[%clk 0:00:11.3]} 42. Rg3+ {[%clk 0:00:11.4]} 42... Kf7 {[%clk 0:00:11.3]}
43. Rh7 {[%clk 0:00:11.7]} 43... Kg8 {[%clk 0:00:11.3]} 44. Rh5 {[%clk
0:00:10.8]} 44... Rd1+ {[%clk 0:00:11.2]} 45. Kh2 {[%clk 0:00:11.1]} 45... Rd7
{[%clk 0:00:08.5]} 46. Rhg5 {[%clk 0:00:10.8]} 46... Rf7 {[%clk 0:00:07.9]} 47.
Bc5 {[%clk 0:00:10.5]} 47... Nd7 {[%clk 0:00:07.7]} 48. Bd6 {[%clk 0:00:10.6]}
48... Nf6 {[%clk 0:00:07.7]} 49. f3 {[%clk 0:00:09.8]} 49... Rd4 {[%clk
0:00:07.2]} 50. Be5 {[%clk 0:00:10.1]} 50... Rdd7 {[%clk 0:00:06.5]} 51. Rg6
{[%clk 0:00:09.8]} 51... Kf8 {[%clk 0:00:06.2]} 52. Rh3 {[%clk 0:00:09]} 52...
Ke7 {[%clk 0:00:05.6]} 53. Rh8 {[%clk 0:00:08.8]} 53... Ne8 {[%clk 0:00:05.6]}
54. Rg4 {[%clk 0:00:07.9]} 54... Nf6 {[%clk 0:00:05.3]} 55. Re4 {[%clk
0:00:08.5]} 55... Nxe4 {[%clk 0:00:03.6]} 56. fxe4 {[%clk 0:00:08.9]} 56... Rf8
{[%clk 0:00:03.8]} 57. Rh7 {[%clk 0:00:07.2]} 57... Rf7 {[%clk 0:00:04.1]} 58.
Bxg7 {[%clk 0:00:06.8]} 58... Rd2 {[%clk 0:00:05]} 59. Kh3 {[%clk 0:00:04.2]}
59... Rc2 {[%clk 0:00:04.9]} 60. e5 {[%clk 0:00:03.8]} 60... Rc7 {[%clk
0:00:05.1]} 61. Bf6+ {[%clk 0:00:04.7]} 61... Ke8 {[%clk 0:00:04.2]} 62. Rh8+
{[%clk 0:00:04.4]} 62... Kd7 {[%clk 0:00:04.3]} 63. Rb8 {[%clk 0:00:05.3]} 63...
Kc6 {[%clk 0:00:04.6]} 64. Kg4 {[%clk 0:00:05.7]} 64... Kd5 {[%clk 0:00:03.5]}
65. Kg5 {[%clk 0:00:06.6]} 65... Kc4 {[%clk 0:00:04.4]} 66. g4 {[%clk
0:00:07.2]} 66... Rc5 {[%clk 0:00:05.3]} 67. Rd8 {[%clk 0:00:07.4]} 67... Rfc7
{[%clk 0:00:05.2]} 68. Rd1 {[%clk 0:00:08.3]} 68... Rd5 {[%clk 0:00:05.6]} 69.
Rc1+ {[%clk 0:00:08.9]} 69... Kb5 {[%clk 0:00:05.7]} 70. Rb1+ {[%clk 0:00:09.8]}
70... Kc6 {[%clk 0:00:05.4]} 71. Kg6 {[%clk 0:00:10.5]} 71... Kd7 {[%clk
0:00:06.3]} 72. g5 {[%clk 0:00:10.9]} 72... Rb7 {[%clk 0:00:06.9]} 73. Rxb7+
{[%clk 0:00:10.9]} 73... Kc6 {[%clk 0:00:07]} 74. Re7 {[%clk 0:00:11.8]} 1-0